Cogmind - Beta 13 @@@ ROGUE MODE // 2024.04.07 @ 00:51:54 Player: pomrit Result: Destroyed by as-07715 with Assembled Blade Performance ------------- Evolutions (1) 500 Regions Visited (3) 600 Robots Destroyed (64) 320 Value Destroyed (1447) 1447 Prototype IDs (3) 60 Alien Tech Used (0) 0 Bonus (154) 154 TOTAL SCORE: 3081 Bonus ------- High Alert Combat Kills 154 Cogmind --------- Core Integrity 0/400 Matter 270/300 Energy 280/280 System Corruption 22% Temperature Cool (50) Movement Treading (240) Ox1 Location -9/Mines Parts ------- > --- POWER (2) -------- Cooled Ion Engine > --- PROPULSION (2) --- Light Treads (fused) Light Treads > --- UTILITY (2) ------ Medium Storage Unit Weapon Shielding > --- WEAPON (3) ------- Particle Gun Heavy Assault Rifle > --- INVENTORY (10) --- VTOL Module Heat Sink Visual Processing Unit Hacking Suite Datajack Peak State ------------ > --- POWER ------------ Improved Ion Engine Cooled Ion Engine > --- PROPULSION ------- Light Treads VTOL Module > --- UTILITY ---------- Medium Storage Unit Medium Armor Plating > --- WEAPON ----------- Heavy EM Pulse Gun Beam Rifle Heavy Assault Rifle > --- INVENTORY -------- Light Treads Light Treads Light Treads Heat Sink Visual Processing Unit Weapon Shielding Hacking Suite Heavy EM Pulse Gun Datajack [Rating: 18] Favorites ----------- Power Cooled Ion Engine Engine Cooled Ion Engine Propulsion Light Treads Treads Light Treads Wheel Wheel Hover Unit Hover Unit Flight Unit Flight Unit Utility Medium Storage Unit Device Heat Sink Storage Medium Storage Unit Processor Targeting Computer Protection Medium Armor Plating Weapon Beam Cannon Energy Gun Beam Rifle Energy Cannon Beam Cannon Ballistic Gun Heavy Assault Rifle Launcher Rocket Launcher Special Weapon Mining Laser Special Melee Weapon Datajack Build | -11 -10 -9 -9 ------- Run | Yrd Mat Mat Min Slots Evolved 2 | . . 2 . Power 1 | . . 1 . Propulsion . | . . . . Utility . | . . . . Weapon 1 | . . 1 . Parts Attached 69 | 5 20 42 2 Power 12 | 1 2 9 . Engine 12 | 1 2 9 . Core . | . . . . Reactor . | . . . . Propulsion 27 | 2 8 16 1 Treads 15 | . . 14 1 Leg . | . . . . Wheel 7 | 2 4 1 . Hover 1 | . 1 . . Flight 4 | . 3 1 . Utility 9 | . 3 5 1 Device 2 | . 1 1 . Storage 3 | . 2 1 . Processor 1 | . . 1 . Hackware . | . . . . Protection 3 | . . 2 1 Artifact . | . . . . Weapon 21 | 2 7 12 . Energy Gun 10 | 1 3 6 . Energy Cannon 4 | . 2 2 . Ballistic Gun 3 | 1 . 2 . Ballistic Cannon . | . . . . Launcher 2 | . 1 1 . Special Weapon 1 | . 1 . . Impact Weapon . | . . . . Slashing Weapon . | . . . . Piercing Weapon . | . . . . Special Melee Weapon 1 | . . 1 . Unidentified Prototypes 3 | . . 3 . Parts Lost 19 | . 3 13 3 Power 6 | . 1 4 1 Propulsion 4 | . 1 2 1 Utility 2 | . . 1 1 Weapon 7 | . 1 6 . Highest Loss Streak 4 | . 2 4 3 To Critical Strikes 1 | . . 1 . Average Slot Usage (%) 82 | . 67 91 79 Engine 13 | . 6 17 19 Treads 11 | . . 17 15 Wheel 7 | . 17 2 4 Storage 12 | . 16 10 11 Processor 2 | . . 4 . Protection 4 | . . 6 6 Energy Gun 10 | . 2 14 11 Energy Cannon 6 | . 7 5 . Ballistic Gun 5 | . 3 6 11 Launcher 3 | . 5 2 . Special Weapon 1 | . 5 . . Special Melee Weapon 1 | . . 2 . Naked Turns . | . . . . Heaviest Build 42 | 7 20 42 34 Greatest Support 40 | 20 20 40 20 Greatest Overweight (x) 11 | . 5 2 11 Average Overweight (x) . | . . . 2 Largest Inventory Capacity 10 | 5 10 10 10 Average Capacity 9 | 5 9 9 10 Most Carried 10 | 4 10 10 7 Average Carried 5 | . 5 6 6 Final Capacity 10 | 5 10 10 10 Final Carried 8 | 2 8 7 5 Class Distribution -------------------- 45% | Mutant 20% | Gunner 16% | Scavenger-Mutant 9% | Tank 7% | Scavenger-Tank Dominant Class ---------------- Mutant | -10/Materials Gunner | -9/Materials Mutant | -9/Mines Resources | -11 -10 -9 -9 ----------- Run | Yrd Mat Mat Min Matter Collected 1489 | 259 239 991 . Remotely . | . . . . Salvage Created 1692 | 49 310 1305 28 Parts 137 | 4 24 109 . Haulers Intercepted 4 | . 1 3 . Recyclers Shooed 4 | . . 4 . Parts Field Recycled . | . . . . Retrieved Matter . | . . . . Parts Self-Destructed . | . . . . Prevented . | . . . . Kills | -11 -10 -9 -9 ------- Run | Yrd Mat Mat Min Combat Hostiles Destroyed 50 | 1 11 36 2 Guns 22 | 1 . 19 2 Cannons 8 | . 5 3 . AOE 19 | . 6 13 . Classes Destroyed 12 | 1 5 5 1 Worker 1 | . . 1 . Builder 1 | . . 1 . Tunneler 1 | . 1 . . Hauler 4 | . 1 3 . Recycler 1 | . . 1 . Mechanic 1 | . . 1 . Operator 2 | . 1 1 . Watcher 5 | . 2 3 . Swarmer 20 | . 5 15 . Grunt 21 | 1 6 14 . Sentry 7 | . . 7 . Assembled 2 | . . . 2 Best Kill Streak 8 | 1 4 8 2 Combat Bots Only 6 | 1 3 6 2 Max Kills in Single Turn 4 | 1 4 3 2 Gunslinging 1 | . . 1 1 Exploded 3 | . 3 2 . Melee . | . . . . Uniques/NPCs Destroyed . | . . . . Combat | -11 -10 -9 -9 -------- Run | Yrd Mat Mat Min Hostile Shots Fired 264 | 4 59 177 24 Missed 68 | 2 16 45 5 Damage Taken 3537 | 22 703 2352 460 Core 638 | 11 214 378 35 Absorbed by Shields . | . . . . Redirected to Shielding 11 | . . . 11 Regen/Repaired (Parts) 73 | . 73 . . Core Remaining (%) 52 | 95 10 . . Volleys Fired 123 | 3 37 78 5 Largest 3 | 2 2 3 2 Hottest 161 | 60 90 161 88 Shots Fired 234 | 6 52 165 11 Gun 134 | 6 13 104 11 Cannon 68 | . 24 44 . Launcher 32 | . 15 17 . Special . | . . . . Kinetic 63 | 3 12 43 5 Thermal 116 | . 25 85 6 Explosive 32 | . 15 17 . Electromagnetic 23 | 3 . 20 . Robot Hit Streak 14 | 6 3 14 8 Robot Miss Streak 7 | . 3 7 1 Penetration Max . | . . . . Secondary Targets 3 | . . 2 1 Max Gunslinging Chain 1 | . . 1 1 Shots Hit Robots 128 | 6 21 91 10 Core Hits 93 | 2 25 61 5 Critical Kills 1 | . . 1 . Critical Parts Destroyed . | . . . . Critical Strikes 5 | . . 4 1 Burn 4 | . . 3 1 Meltdown 1 | . . 1 . Melee Attacks 9 | . . 9 . Impact . | . . . . Slashing . | . . . . Piercing . | . . . . Sneak Attacks 4 | . . 4 . Combat Hostiles . | . . . . Follow-up Attacks . | . . . . Damage Inflicted 3611 | 79 766 2609 157 Guns 1173 | 79 28 909 157 Cannons 662 | . 245 417 . Explosions 1765 | . 493 1272 . Melee . | . . . . Ramming 11 | . . 11 . Kinetic 635 | 39 28 490 78 Thermal 1239 | . 245 915 79 Explosive 1531 | . 493 1038 . Electromagnetic 195 | 40 . 155 . Impact . | . . . . Slashing . | . . . . Piercing . | . . . . Highest Corruption 22 | . 7 13 22 Average Corruption 9 | . 7 11 16 Corruption Purged . | . . . . Corruption Blocked . | . . . . Effects 100 | . 40 59 1 Message Errors 21 | . 6 15 . Matter Fused 27 | . 6 21 . Heat Flow Errors 9 | . 3 6 . Energy Discharges 14 | . 9 5 . Parts Rejected 1 | . 1 . . Parts Fused 3 | . 1 2 . Data Loss (minor) 7 | . 6 1 . Data Loss (major) 5 | . 4 1 . Misfires 6 | . 1 4 1 Alerts 4 | . 2 2 . Misdirections 2 | . . 2 . Weapon Failures 1 | . 1 . . Overload Shots . | . . . . Overflow Damage 113 | . . 113 . Projectiles 9 | . . 9 . Explosions 104 | . . 104 . Melee . | . . . . Knockbacks . | . . . . Impact . | . . . . Kinetic . | . . . . Secondary . | . . . . Self-Inflicted Damage 270 | . 72 198 . Shots 8 | . 3 5 . Rammed 1 | . . 1 . Targets Rammed 1 | . . 1 . Kicked . | . . . . Crushed . | . . . . Highest Temperature 570 | 6 306 570 50 Average Temperature 99 | 6 100 104 26 Received Heat Transfer 684 | 12 129 543 . Effects 11 | . . 11 . Shutdowns 4 | . . 4 . Energy Bleed 2 | . . 2 . Interference 5 | . . 5 . Siege Activations . | . . . . Robots Corrupted . | . . . . Combat Hostiles . | . . . . Parts Fried . | . . . . Impact Corruptions . | . . . . Robots Melted 1 | . . 1 . Combat Hostiles 1 | . . 1 . Parts Melted 6 | . 2 4 . Heat Transferred 2816 | . 518 2039 259 Parts Sabotaged . | . . . . Parts Stolen . | . . . . Parts Stripped . | . . . . Power Chain Reactions 2 | . . 2 . Alert | -11 -10 -9 -9 ------- Run | Yrd Mat Mat Min Peak Influence 749 | 20 222 749 291 Initial 291 | . 13 3 291 Average 279 | 10 108 405 278 Maximum Alert Level 3 | . 1 3 1 Low Security (%) 53 | 100 82 33 . Level 1 10 | . 17 6 100 Level 2 26 | . . 44 . Level 3 9 | . . 15 . Level 4 . | . . . . Level 5 . | . . . . High Security . | . . . . Max Security . | . . . . Squads Dispatched 9 | . 3 6 . Investigation 4 | . 3 1 . Extermination . | . . . . Reinforcement 4 | . . 4 . Assault 1 | . . 1 . Garrison . | . . . . Intercept . | . . . . Searches Triggered . | . . . . Construction Impeded . | . . . . Haulers Reinforced . | . . . . Active Scanning Responses . | . . . . Cargo Convoy Interrupts . | . . . . Stealth | -11 -10 -9 -9 --------- Run | Yrd Mat Mat Min Distress Signals 2 | . . 2 . Communications Jammed . | . . . . Distress Signals . | . . . . Times Spotted 72 | 1 17 50 4 Peak Tracking Total 5 | 1 3 5 4 Tactical Retreats 2 | . . 2 . Traps | -11 -10 -9 -9 ------- Run | Yrd Mat Mat Min Traps Triggered 8 | . 5 3 . Indirectly . | . . . . Trap Hack Attempts . | . . . . Triggered . | . . . . Disarmed . | . . . . Reprogrammed . | . . . . Reused . | . . . . Traps Extracted . | . . . . Installed . | . . . . Triggered . | . . . . Machines | -11 -10 -9 -9 ---------- Run | Yrd Mat Mat Min Machines Disabled 5 | . 1 4 . Max in Single Turn 1 | . 1 1 . Machines Repaired . | . . . . Machines Dismantled . | . . . . Machines Sabotaged . | . . . . Overloaded Fab Kills . | . . . . Hacking | -11 -10 -9 -9 --------- Run | Yrd Mat Mat Min Machines Accessed 10 | . 6 4 . Terminals 7 | . 5 2 . Fabricators . | . . . . Repair Stations 2 | . 1 1 . Recycling Units . | . . . . Scanalyzers 1 | . . 1 . Garrison Access . | . . . . Total Hacks 19 | . 11 8 . Successful 13 | . 9 4 . Failed 6 | . 2 4 . Catastrophic 2 | . . 2 . Database Lockouts . | . . . . Manual . | . . . . Terminals 12 | . 8 4 . Fabricators . | . . . . Repair Stations 6 | . 3 3 . Recycling Units . | . . . . Scanalyzers 1 | . . 1 . Garrison Access . | . . . . Terminal Hacks 10 | . 7 3 . Record 3 | . 3 . . Level Access Points 1 | . . 1 . Alert Level 3 | . 2 1 . Patrol Status 1 | . . 1 . Investigation Status 1 | . 1 . . Zone Layout 1 | . 1 . . Fabricator Hacks . | . . . . Repair Station Hacks 3 | . 2 1 . Scan Component 2 | . 1 1 . Repair 1 | . 1 . . Recycling Unit Hacks . | . . . . Scanalyzer . | . . . . Garrison Access Hacks . | . . . . Unauthorized Hacks . | . . . . Terminals . | . . . . Fabricators . | . . . . Repair Stations . | . . . . Recycling Units . | . . . . Scanalyzers . | . . . . Garrison Access . | . . . . Data Cores Recovered 1 | . 1 . . Used . | . . . . Hacking Detections 4 | . 3 1 . Full Trace Events 2 | . 1 1 . Feedback Events . | . . . . Feedback Blocked . | . . . . Robot Schematics Acquired . | . . . . Robots Built . | . . . . Authchips . | . . . . Time . | . . . . Total Robot Build Rating . | . . . . Part Schematics Acquired . | . . . . Parts Built . | . . . . Authchips . | . . . . Time . | . . . . Total Part Build Rating . | . . . . Parts Repaired 1 | . 1 . . Time 26 | . 26 . . Parts Recycled . | . . . . Recycled Matter . | . . . . Retrieved Matter . | . . . . Retrieved Components . | . . . . Parts Scanalyzed . | . . . . Part Schematics Acquired . | . . . . Parts Damaged . | . . . . Bothacking | -11 -10 -9 -9 ------------ Run | Yrd Mat Mat Min Used RIF Installer . | . . . . Robots Hacked 5 | . . 5 . Non-combat 4 | . . 4 . Combat 1 | . . 1 . Robot Hacks Applied 5 | . . 5 . parse_system 1 | . . 1 . no_distress 3 | . . 3 . find_station 1 | . . 1 . Relay Couplers Released . | . . . . Fabnet Peak Effective % . | . . . . Robots Rewired . | . . . . Allies Hacked . | . . . . Hacks Repelled . | . . . . Allies | -11 -10 -9 -9 -------- Run | Yrd Mat Mat Min Total Allies . | . . . . Largest Group . | . . . . Highest-Rated Group . | . . . . Highest-Rated Ally . | . . . . Total Orders . | . . . . Ally Attacks . | . . . . Total Damage . | . . . . Kills . | . . . . Allies Corrupted . | . . . . Allies Melted . | . . . . Intel | -11 -10 -9 -9 ------- Run | Yrd Mat Mat Min Robot Analysis Total . | . . . . Derelict Logs Recovered . | . . . . Drone Launches . | . . . . Drone Recoveries . | . . . . Exploration | -11 -10 -9 -9 ------------- Run | Yrd Mat Mat Min Turns Passed 3930 | 262 1298 2321 49 Spaces Moved 2472 | 203 1184 1067 18 Core 114 | 78 35 . 1 Treads 883 | . . 880 3 Legs . | . . . . Wheels 1457 | 125 1131 187 14 Hover . | . . . . Flight 18 | . 18 . . Fastest Speed 50 | 50 80 95 130 Average Speed 127 | 68 95 173 174 Slowest Speed 600 | 80 360 240 600 Overloaded Moves . | . . . . Propulsion Burnouts . | . . . . Robots Hopped . | . . . . Cave-ins Triggered 3 | . 1 2 . Exploration Rate (%) 44 | 11 92 67 7 Regions Visited 3 Branch Regions 1 Pre-discovered Areas . | . . . . Known Exits Taken . | . . . . Unknown Exits Taken 3 | 1 1 1 . Scrap Searched . | . . . . Spaces Dug . | . . . . Terrain Destroyed 262 | . 103 159 . Melee . | . . . . Projectile 1 | . . 1 . AOE 261 | . 103 158 . Terrain Rammed . | . . . . Walls Destroyed . | . . . . Machines Disabled . | . . . . Actions | -11 -10 -9 -9 --------- Run | Yrd Mat Mat Min Total 3039 | 320 1297 1396 26 Wait 268 | 99 17 151 1 Move 2469 | 202 1183 1066 18 Hop . | . . . . Pick Up 68 | 9 26 33 . Fast Attach . | . . . . Attach 37 | 5 14 16 2 Detach 4 | . 4 . . Swap 32 | . 6 26 . Drop 28 | 2 10 16 . Fire 123 | 3 37 78 5 Melee 9 | . . 9 . Ram 1 | . . 1 . Kick . | . . . . Crush . | . . . . Escape Stasis . | . . . . Rewire . | . . . . Trap . | . . . . Miscellaneous . | . . . . Route ------- -11/Scrapyard -10/Materials (discovered 4 exits: *Mat x3 / [*Min]) -9/Materials (discovered 5 exits: *Mat x3 / [*Min x2]) -9/Mines History --------- Turn | Location | Event 2 | -11/Scrapyard | Met Revision 17 114 | -11/Scrapyard | Discovered new exit (range 8) 263 | -11/Scrapyard | Entered Materials 302 | -10/Materials | Build established: Mutant 366 | -10/Materials | Crushed by falling debris 597 | -10/Materials | Core integrity fell below 50% 679 | -10/Materials | Discovered new exit (range 3) 797 | -10/Materials | Discovered new exit (range 8) 830 | -10/Materials | Core integrity fell below 20% 1032 | -10/Materials | Discovered new exit (range 16) 1094 | -10/Materials | Discovered new exit (range 7) 1219 | -10/Materials | Repaired Beam Cannon? 1561 | -10/Materials | Entered another Materials area 1561 | -9/Materials | Evolved 2 slots: Power x1, Weapon x1 1996 | -9/Materials | Build established: Gunner 2134 | -9/Materials | Discovered new exit (range 15) 2135 | -9/Materials | Discovered new exit (range 13) 2494 | -9/Materials | Crushed by falling debris 2495 | -9/Materials | Core integrity fell below 50% 2504 | -9/Materials | Crushed by falling debris 2504 | -9/Materials | System corruption reached 10% 2535 | -9/Materials | Lost 4 parts (1p1n2w) 2564 | -9/Materials | Discovered new exit (range 16) 2810 | -9/Materials | Build established: Scavenger-Mutant 3286 | -9/Materials | Build established: Tank 3428 | -9/Materials | Identified exit to Materials 3561 | -9/Materials | First assault squad dispatched 3610 | -9/Materials | Core integrity fell below 20% 3698 | -9/Materials | Lost 3 parts (1n2w) 3882 | -9/Materials | Entered Mines 3883 | -9/Mines | Assembled infested the area 3931 | -9/Mines | Destroyed by as-07715 with Assembled Blade Last Messages --------------- System corrupted: Lgt. Treads fused. LOCATION=UNKNOWN GOAL=ESCAPE Something is scanning the area. ALERT: Infestation in the mines, dispatching Demolisher response squad. Com. Wheel destroyed. System corrupted by crushing effect (+1). Imp. Light Armor Plating destroyed. System corrupted by crushing effect (+5). System corrupted: FCS attempts to trigger Particle Gun. System corrupted: Particle Gun misfires. Imp. Ion Engine destroyed. System corrupted by crushing effect (+3). as-38559 suffers critical hit (Burn). as-71651 destroyed. Switching to secondary target: as-38559. as-38559 destroyed. [Achievement: First Step to Greatness] Map ----- +----------------------------------------------------+ | | | | | | | | | | | | | | | | | | | | | | | | | | | | | ?????????????????????????????????????? | | ?????????????????????????####????????? | | ????????????????????????## ####?????? | | ??????????????????????### ###???? | | ?????????????????????## ##??? | | ????????????????????## #??? | | ???????????????????## """ #??? | | ???????????????????# """ #??? | | ???????????????????# """ #??? | | ???????????????????## #??? | | ????????????????????## #?? | | ?????????????????????## @ ## #?? | | ??????????????????????## a%##?# ##?? | | ???????????????????????### #???# #??? | | ?????????????????????????#a#???? #??? | | ?????????????????????????# #????? #??? | | ???????????????????????? #?????##??? | | ?????????????????????? #?????????? | | ???????????????????? " #####?????????? | | ???????????????????# ???????????????? | | ???????????????????##????????????????? | | ?????????????????????????????????????? | | ?????????????????????????????????????? | | ?????????????????????????????????????? | | ?????????????????????????????????????? | | ?????????????????????????????????????? | | ?????????????????????????????????????? | | ?????????????????????????????????????? | | ?????????????????????????????????????? | | ?????????????????????????????????????? | | ?????????????????????????????????????? | | ?????????????????????????????????????? | | ?????????????????????????????????????? | | ?????????????????????????????????????? | | ?????????????????????????????????????? | | ?????????????????????????????????????? | +----------------------------------------------------+ Best States ------------- Heat Dissipation 38 Energy Generation 23 Energy Capacity 460 Matter Stores 300 Matter Capacity 450 Sight Range 16 Terrain Scan Density 10 Armor Coverage 225 Weapon Shielding 33 Evasion (%) 50 Targeting Accuracy 5 Recoil Reduction 2 Item Schematics ----------------- None Robot Schematics ------------------ None Fabricated ------------ Nothing Alien Tech Used ----------------- None Achievements -------------- Crack Shot First Step to Greatness It's Just You Loot Pinata One Hack Too Far Part-time Mechanic Remodeling Risk Taker Significant Disruption Storm Trooper System Compromised Uninvited Guest Unlikely Earthworm Challenges ------------ None Game ------ Seed AngularMomentumDatajack Manual? 0 Play Time 01:21:14 Cumulative 1.3 hours Start 2024.04.06 @ 23:27:28 End 2024.04.07 @ 00:51:54 Sessions 1 Manual Loads 0 Difficulty Rogue Special Mode None Game No. 1 Rogue 1 Adventurer 0 Explorer 0 Win Type - Total 0 Types 0/0/0/0/0/0/0/0/0 Lore% 0 Gallery% 3 Achievement% 5 Wizard Run 0 Options --------- Layout 1 ASCII 0 Keyboard 1 Movement Numpad Keybinds 0 Fullscreen 1 Font 32/SmallcapsGlow Map View 25x17 Zoom Use 91% Tactical HUD 0 Map Filters NONE Filters NONE Steam 1 RUN: d76a9113-e92b-4d7b-886a-4f70d830a020